bitfinex/quotes_SOLUSD_20241214
["timestamp","ask_amount","ask_price","bid_price","bid_amount"]
[1734143373425,0.45770888,225.11,225.0,6.82696468]
[1734143373796,0.33221888,225.11,225.03,6.65696468]
[1734143374014,1.4784,225.13,225.06,6.65696468]
[1734143374321,1.4784,225.13,225.04,0.66646136]
[1734143374322,6.3435,225.16,225.08,6.65696468]
[1734143378634,6.3435,225.16,225.07,7.32326908]
[1734143379404,6.3435,225.16,225.08,6.65696468]
[1734143379609,6.3435,225.16,225.09,0.66621315]
[1734143381849,6.3435,225.16,225.08,6.65696468]
[1734143382558,6.3435,225.16,225.07,6.65696468]
[1734143383350,6.3435,225.16,225.08,7.32323588]
[1734143394454,6.3435,225.16,225.08,0.6662712]
[1734143397178,6.3435,225.16,225.08,7.32323588]
[1734143399576,6.3435,225.16,225.08,0.6662712]
[1734143399777,0.33221888,225.15,225.06,20.0]
[1734143399963,24.10910288,225.15,225.06,20.0]
[1734143400370,24.10910288,225.15,225.02,1.515]
[1734143400826,24.10910288,225.15,225.03,6.65696468]
[1734143401076,24.10910288,225.15,225.04,6.65696468]
[1734143402258,24.10910288,225.15,225.05,6.65696468]
[1734143404412,13.0055,225.16,225.03,0.6663762]
[1734143404413,6.3435,225.16,225.08,6.65696468]
[1734143404614,6.3435,225.16,225.09,6.65696468]
[1734143405478,6.3435,225.16,225.07,6.65696468]
[1734143406103,6.3435,225.16,225.08,6.65696468]
[1734143408702,6.3435,225.16,225.07,6.65696468]
[1734143410197,6.3435,225.16,225.08,6.65696468]
[1734143412982,0.33221888,225.15,225.08,6.65696468]
[1734143413183,6.3435,225.16,225.08,6.65696468]
[1734143413404,0.33221888,225.15,225.08,6.65696468]
[1734143413606,6.3435,225.16,225.07,6.65696468]
[1734143413801,0.33221888,225.15,225.07,6.65696468]
[1734143415403,6.3435,225.16,225.07,6.65696468]
[1734143415774,6.3435,225.16,225.08,6.65696468]
[1734143422311,6.5142,225.21,225.14,6.65696468]
[1734143422693,6.5142,225.21,225.15,6.65696468]
[1734143424405,1.4784,225.25,225.18,6.65696468]
[1734143424592,1.4784,225.25,225.19,7.32298786]
[1734143425285,6.3967,225.27,225.19,7.32298786]
[1734143425903,6.3967,225.27,225.19,6.65696468]
[1734143426102,0.33221888,225.26,225.18,6.65696468]
[1734143426790,6.3967,225.27,225.18,6.65696468]
[1734143427512,0.33221888,225.26,225.18,6.65696468]
[1734143428211,6.3967,225.27,225.19,6.65696468]
[1734143428419,6.3967,225.27,225.13,30.79140749]
[1734143428593,1.4784,225.3,225.22,6.65696468]
[1734143428796,1.4784,225.3,225.23,6.65696468]
[1734143429095,6.6652,225.32,225.23,6.65696468]
[1734143429506,1.81061888,225.35,225.19,0.66579614]
[1734143429507,1.81061888,225.35,225.25,6.65696468]
[1734143429914,1.81061888,225.35,225.26,6.65696468]
[1734143431424,1.81061888,225.35,225.27,6.65696468]
[1734143432309,1.4784,225.35,225.29,6.65696468]
[1734143432617,6.3331,225.37,225.29,6.65696468]
[1734143433114,0.33221888,225.39,225.31,6.65696468]
[1734143433299,1.4784,225.4,225.31,6.65696468]
[1734143433622,1.81061888,225.4,225.32,6.65696468]
[1734143433914,1.81061888,225.4,225.31,6.65696468]
[1734143434413,1.4784,225.4,225.31,6.65696468]
[1734143434807,0.33221888,225.39,225.3,6.65696468]
[1734143436012,0.12549,225.38,225.28,26.65696468]
[1734143436400,0.12549,225.38,225.27,26.65696468]
[1734143436905,0.12549,225.38,225.28,6.65696468]
[1734143437224,8.3469916,225.48,225.37,6.65696468]
[1734143437436,0.33221888,225.47,225.39,6.65696468]
[1734143437636,8.3469916,225.48,225.4,6.65696468]
[1734143438637,8.3469916,225.48,225.42,6.65696468]
[1734143439009,8.3469916,225.48,225.41,6.65696468]
[1734143439209,8.3469916,225.48,225.37,0.66536155]
[1734143439210,0.5354916,225.48,225.42,6.65696468]
[1734143439623,0.5354916,225.48,225.37,0.66536155]
[1734143439624,0.5354916,225.48,225.43,6.65696468]
[1734143440221,0.5354916,225.48,225.44,6.65696468]
[1734143440426,0.5354916,225.48,225.45,6.65696468]
[1734143441227,0.5354916,225.48,225.46,6.65696468]
[1734143441609,0.5354916,225.48,225.44,6.65696468]
[1734143442436,0.5354916,225.48,225.45,6.65696468]
[1734143443606,0.5354916,225.48,225.46,6.65696468]
[1734143444831,0.5354916,225.48,225.46,20.0]
[1734143445620,0.5354916,225.48,225.43,5.69353602]
[1734143446342,0.5354916,225.48,225.44,6.65696468]
[1734143447331,0.5354916,225.48,225.45,6.65696468]
[1734143447526,0.5354916,225.48,225.46,6.65696468]
[1734143447727,0.5354916,225.48,225.45,6.65696468]
[1734143449485,0.5354916,225.48,225.47,6.65696468]
[1734143450041,0.5354916,225.48,225.47,6.82696468]
[1734143452766,0.5354916,225.48,225.47,12.5205007]
[1734143454066,0.5354916,225.48,225.47,12.6459907]
[1734143454372,6.3845,225.62,225.47,12.6459907]
[1734143454373,6.3845,225.62,225.5,20.0]
[1734143454548,0.33221888,225.65,225.5,20.0]
[1734143454549,0.33221888,225.65,225.56,6.65696468]
[1734143455150,0.33221888,225.65,225.57,6.65696468]
[1734143456689,0.33221888,225.65,225.56,6.65696468]
[1734143459374,0.12549,225.64,225.53,20.0]
[1734143459559,0.12549,225.64,225.51,5.69353602]
[1734143459560,0.12549,225.64,225.54,26.65696468]
[1734143461685,1.4784,225.66,225.59,6.65696468]
[1734143461888,0.33221888,225.7,225.64,6.65696468]
[1734143462188,0.5354916,225.71,225.68,6.65696468]
[1734143462386,0.5354916,225.71,225.69,6.65696468]
[1734143464185,0.5354916,225.71,225.65,6.36030686]
[1734143464391,0.5354916,225.71,225.67,6.65696468]
[1734143464776,0.5354916,225.71,225.66,6.65696468]
[1734143465383,0.5354916,225.71,225.67,6.65696468]
[1734143465798,0.5354916,225.71,225.66,6.65696468]
[1734143466877,0.5354916,225.71,225.65,12.35253197]
[1734143467501,0.5354916,225.71,225.65,5.69556729]
[1734143467718,0.5354916,225.71,225.63,6.65696468]
[1734143468179,0.5354916,225.71,225.61,0.66461203]
[1734143468180,0.45770888,225.7,225.58,0.66468849]
[1734143468493,0.33221888,225.7,225.62,6.65696468]
[1734143469198,0.12549,225.66,225.47,1.5585]
[1734143469377,0.12549,225.65,225.51,6.65696468]
[1734143469582,24.027864,225.63,225.52,6.65696468]
[1734143469786,0.33221888,225.62,225.54,6.65696468]
[1734143470093,24.23459288,225.65,225.54,6.65696468]
[1734143471279,24.23459288,225.65,225.48,0.66499985]
[1734143471280,24.23459288,225.65,225.53,10.37033995]
[1734143472881,24.23459288,225.65,225.54,10.37033995]
[1734143474092,0.12549,225.63,225.52,10.37033995]
[1734143474314,24.23459288,225.63,225.52,10.37033995]
[1734143476999,0.12549,225.61,225.52,10.37033995]
[1734143477200,0.45770888,225.61,225.52,10.37033995]
[1734143477905,1.4784,225.59,225.48,10.37033995]
[1734143478088,6.2244,225.57,225.46,10.37033995]
[1734143478288,0.33221888,225.56,225.46,10.37033995]
[1734143479227,24.10910288,225.56,225.46,10.37033995]
[1734143479507,24.10910288,225.56,225.49,10.37033995]
[1734143479508,0.33221888,225.56,225.49,10.37033995]
[1734143479689,0.33221888,225.56,225.48,10.37033995]
[1734143479893,0.33221888,225.56,225.47,10.37033995]
[1734143480095,0.33221888,225.56,225.46,10.37033995]
[1734143481509,0.33221888,225.56,225.47,10.37033995]
[1734143481713,0.33221888,225.56,225.44,0.66516486]
[1734143481911,0.33221888,225.56,225.47,10.37033995]
[1734143483532,0.12549,225.55,225.47,10.37033995]
[1734143485740,0.12549,225.55,225.45,10.37033995]
[1734143486828,0.12549,225.53,225.43,10.37033995]
[1734143487241,0.33221888,225.54,225.45,10.37033995]
[1734143487846,0.33221888,225.56,225.47,10.37033995]
[1734143488052,6.2244,225.57,225.51,10.37033995]
[1734143488345,1.4784,225.59,225.52,10.37033995]
[1734143489755,0.33221888,225.58,225.51,10.37033995]
[1734143491247,1.4784,225.59,225.5,6.63865311]
[1734143491749,0.33221888,225.58,225.5,6.63865311]
[1734143492343,1.4784,225.59,225.52,6.63865311]
[1734143492542,1.4784,225.59,225.51,6.63865311]
[1734143493346,1.4784,225.59,225.5,6.63865311]
[1734143493555,0.33221888,225.58,225.49,6.63865311]
[1734143493955,0.33221888,225.58,225.5,6.63865311]
[1734143494254,1.4784,225.59,225.5,6.63865311]
[1734143496162,0.33221888,225.58,225.5,6.63865311]
[1734143496862,6.6482,225.63,225.52,6.63865311]
[1734143497068,0.33221888,225.61,225.52,6.63865311]
[1734143497547,0.33221888,225.62,225.54,6.63865311]
[1734143497881,24.36008288,225.66,225.54,6.63865311]
[1734143498053,0.33221888,225.66,225.56,6.63865311]
[1734143498379,0.33221888,225.66,225.58,6.63865311]
[1734143498548,0.33221888,225.68,225.58,6.63865311]
[1734143499176,0.33221888,225.68,225.57,6.63865311]
[1734143500181,0.12549,225.67,225.57,6.63865311]
[1734143502179,0.25098,225.67,225.57,6.63865311]
[1734143502647,24.027864,225.67,225.57,6.63865311]
[1734143502840,0.33221888,225.66,225.57,6.63865311]
[1734143503876,24.36008288,225.67,225.54,27.3034868]
[1734143504460,24.36008288,225.67,225.55,6.63865311]
[1734143507894,24.027864,225.65,225.47,6.6525]
[1734143508194,24.027864,225.63,225.52,6.63865311]
[1734143508372,0.33221888,225.62,225.52,6.63865311]
[1734143508575,24.10910288,225.62,225.52,6.63865311]
[1734143509095,0.12549,225.64,225.55,6.63865311]
[1734143509392,0.33221888,225.63,225.55,6.63865311]
[1734143509881,0.33221888,225.63,225.54,6.63865311]
[1734143510099,0.33221888,225.63,225.55,0.17]
[1734143510297,0.58319888,225.64,225.55,0.17]
[1734143512604,0.58319888,225.64,225.54,6.63865311]
[1734143514403,0.58319888,225.64,225.53,6.63865311]
[1734143515991,23.776884,225.63,225.52,6.63865311]
[1734143516180,0.33221888,225.62,225.52,6.63865311]
[1734143520605,7.5353,225.61,225.52,6.63865311]
[1734143520772,0.33221888,225.6,225.52,6.63865311]
[1734143520973,0.33221888,225.6,225.48,20.0]
[1734143521199,0.33221888,225.6,225.5,6.63865311]
[1734143522282,0.33221888,225.6,225.49,6.63865311]
[1734143522478,0.12549,225.59,225.47,6.63865311]
[1734143522907,0.12549,225.59,225.48,6.63865311]
[1734143523297,0.33221888,225.6,225.5,6.63865311]
[1734143523609,6.6479,225.64,225.54,6.63865311]
[1734143523810,0.33221888,225.63,225.54,6.63865311]
[1734143525418,0.33221888,225.63,225.53,6.63865311]
[1734143526702,0.33221888,225.63,225.52,6.63865311]
[1734143528627,24.10910288,225.63,225.52,6.63865311]
[1734143529301,24.10910288,225.63,225.53,6.63865311]
[1734143529940,0.33221888,225.63,225.53,6.63865311]
[1734143534026,0.33221888,225.63,225.51,6.63865311]
[1734143534240,0.33221888,225.63,225.52,0.17]
[1734143535252,0.33221888,225.63,225.53,6.63865311]
[1734143535623,0.33221888,225.63,225.54,0.17]
[1734143539047,0.33221888,225.63,225.53,6.63865311]
[1734143540420,7.8103,225.66,225.56,6.63865311]
[1734143540625,7.8103,225.66,225.57,6.63865311]
[1734143540841,0.33221888,225.65,225.55,26.63865311]
[1734143541160,0.33221888,225.65,225.55,20.0]
[1734143541325,0.33221888,225.65,225.55,26.63865311]
[1734143542629,0.33221888,225.65,225.56,23.776884]
[1734143543039,0.33221888,225.65,225.57,0.17]
[1734143543246,0.33221888,225.65,225.56,23.776884]
[1734143543852,0.33221888,225.65,225.55,20.0]
[1734143544148,0.33221888,225.65,225.56,0.17]
[1734143544729,0.33221888,225.65,225.55,20.0]
[1734143545860,0.33221888,225.65,225.56,30.41553711]
[1734143546064,0.33221888,225.67,225.59,6.63865311]
[1734143546251,0.33221888,225.7,225.59,6.63865311]
[1734143546568,0.33221888,225.7,225.59,23.776884]
[1734143548180,0.33221888,225.7,225.59,6.63865311]
[1734143550749,0.33221888,225.7,225.59,6.80865311]
[1734143554470,0.33221888,225.7,225.59,6.63865311]
[1734143557447,0.33221888,225.7,225.62,6.63865311]
[1734143557651,2.0138916,225.71,225.62,6.63865311]
[1734143557862,2.0138916,225.71,225.62,7.3033096]
[1734143558260,2.0138916,225.71,225.63,6.63865311]
[1734143558456,2.34611048,225.71,225.63,6.63865311]
[1734143558877,2.0138916,225.71,225.63,6.63865311]
[1734143560062,0.33221888,225.7,225.62,23.776884]
[1734143560882,2.34611048,225.71,225.62,23.776884]
[1734143561166,2.0138916,225.71,225.62,30.41553711]
[1734143562469,2.34611048,225.71,225.62,30.41553711]
[1734143562788,2.0138916,225.71,225.62,30.41553711]
[1734143562959,0.5354916,225.71,225.64,30.41553711]
[1734143565977,0.5354916,225.71,225.64,23.776884]
[1734143566494,0.5354916,225.71,225.63,0.66459024]
[1734143566668,0.5354916,225.71,225.61,6.63865311]
[1734143566874,0.5354916,225.71,225.61,30.41553711]
[1734143567297,0.5354916,225.71,225.62,7.3033039]
[1734143568268,0.5354916,225.71,225.62,6.63865311]
[1734143570077,0.5354916,225.71,225.61,4.87584507]
[1734143570272,0.5354916,225.71,225.61,11.51449818]
[1734143570870,0.5354916,225.71,225.62,20.0]
[1734143571193,0.33221888,225.7,225.59,4.89765899]
[1734143571395,1.4784,225.69,225.59,4.89765899]
[1734143571698,0.33221888,225.68,225.59,4.89765899]
[1734143572480,0.33221888,225.68,225.6,0.17]
[1734143573581,0.33221888,225.68,225.59,4.89765899]
[1734143574195,0.33221888,225.68,225.55,5.54055697]
[1734143574495,0.33221888,225.68,225.57,6.63865311]
[1734143574681,0.33221888,225.68,225.56,6.80865311]
[1734143574887,0.33221888,225.68,225.58,20.0]
[1734143575087,0.33221888,225.68,225.57,6.63865311]
[1734143575603,0.33221888,225.68,225.56,0.17]
[1734143575806,0.25098,225.67,225.56,0.17]
[1734143576210,0.25098,225.67,225.55,11.51449818]
[1734143578404,0.33221888,225.66,225.55,11.51449818]
[1734143579614,0.33221888,225.66,225.55,6.63865311]
[1734143583009,0.33221888,225.66,225.53,6.44275899]
[1734143583010,0.33221888,225.66,225.53,11.5363121]
[1734143587734,0.33221888,225.66,225.54,26.63865311]
[1734143594340,0.33221888,225.66,225.55,0.17]
[1734143599459,0.33221888,225.66,225.54,20.0]
[1734143601442,0.33221888,225.66,225.54,26.63865311]
[1734143602258,0.33221888,225.66,225.55,0.17]
[1734143602560,28.92150232,225.67,225.55,0.17]
[1734143609586,28.92150232,225.67,225.55,20.17]
[1734143613366,26.22999888,225.67,225.55,20.17]
[1734143615091,23.902374,225.66,225.55,20.17]
[1734143615293,23.902374,225.66,225.53,20.0]
[1734143615657,23.902374,225.66,225.54,20.0]
[1734143616991,23.902374,225.66,225.53,26.63865311]
[1734143619791,26.60090374,225.66,225.53,26.63865311]
[1734143622215,26.60090374,225.66,225.54,20.0]
[1734143637871,20.0,225.63,225.52,13.59110351]
[1734143638270,26.60090374,225.66,225.52,13.59110351]
[1734143638649,19.58319888,225.67,225.54,6.63865311]
[1734143638851,19.58319888,225.67,225.56,6.63865311]
[1734143639267,19.58319888,225.67,225.57,6.63865311]
[1734143640066,19.58319888,225.67,225.55,7.61727259]
[1734143640270,19.58319888,225.67,225.57,6.63865311]
[1734143641604,19.58319888,225.67,225.56,6.63865311]
[1734143642686,20.0,225.66,225.54,7.0779404]
[1734143642877,20.0,225.66,225.55,6.63865311]
[1734143643878,10.79992201,225.69,225.55,6.63865311]
[1734143646089,10.79992201,225.69,225.54,0.12549]
[1734143646299,10.79992201,225.69,225.54,6.76414311]
[1734143648505,10.79992201,225.69,225.55,6.63865311]
[1734143648675,1.4784,225.69,225.59,6.63865311]
[1734143648878,1.4784,225.69,225.6,6.63865311]
[1734143649203,1.4784,225.69,225.6,7.30336764]
[1734143651905,1.4784,225.69,225.59,6.63865311]
[1734143653906,1.4784,225.69,225.6,6.63865311]
[1734143654410,1.4784,225.69,225.59,27.30336653]
[1734143657308,1.4784,225.69,225.59,20.66471342]
[1734143657503,1.4784,225.69,225.59,27.30336653]
[1734143658209,1.4784,225.69,225.6,0.12549]
[1734143658442,1.4784,225.69,225.6,6.76414311]
[1734143660822,1.4784,225.69,225.59,20.0]
[1734143661315,1.4784,225.69,225.6,20.0]
[1734143661495,1.4784,225.69,225.61,20.0]
[1734143663700,1.4784,225.69,225.56,9.8454652]
[1734143663899,1.4784,225.69,225.59,20.0]
[1734143666097,1.4784,225.69,225.58,20.0]
[1734143666321,1.4784,225.69,225.59,20.0]
[1734143672627,1.4784,225.69,225.59,0.12549]
[1734143672834,1.4784,225.69,225.59,20.12549]
[1734143673206,1.4784,225.69,225.59,20.0]
[1734143675713,1.4784,225.69,225.56,4.96962013]
[1734143675917,0.12549,225.68,225.53,4.87584507]
[1734143676219,23.902374,225.68,225.52,6.63865311]
[1734143676425,20.0,225.65,225.52,6.63865311]
[1734143686115,20.0,225.65,225.51,0.12549]
[1734143686314,20.0,225.65,225.53,20.0]
[1734143686315,6.1422,225.64,225.53,20.0]
[1734143686739,6.1422,225.64,225.51,6.76414311]
[1734143692025,6.1422,225.64,225.5,5.77872337]
[1734143692240,6.1422,225.64,225.53,20.0]
[1734143693636,1.4784,225.63,225.53,20.0]
[1734143695830,1.4784,225.63,225.5,11.75257324]
[1734143698063,0.12549,225.61,225.5,5.11392013]
[1734143698256,0.12549,225.61,225.49,20.0]
[1734143700973,6.77439,225.61,225.49,20.0]
[1734143701845,6.1986,225.6,225.48,20.0]
[1734143702042,0.12549,225.58,225.45,5.11392013]
[1734143702242,23.902374,225.58,225.45,5.11392013]
[1734143702583,0.12549,225.56,225.44,14.61108696]
[1734143703744,6.77579,225.56,225.44,14.61108696]
[1734143708967,6.77579,225.56,225.41,0.66522262]
[1734143709268,6.77579,225.56,225.43,20.0]
[1734143710481,6.30479,225.54,225.4,5.11392013]
[1734143710690,20.0,225.5,225.33,20.39776783]
[1734143710872,1.4784,225.47,225.34,6.63865311]
[1734143711173,1.4784,225.47,225.33,20.39776783]
[1734143711374,0.12549,225.46,225.33,27.03642094]
[1734143711586,0.12549,225.46,225.33,20.39776783]
[1734143711754,0.12549,225.46,225.33,19.73239679]
[1734143712681,0.12549,225.46,225.36,20.0]
[1734143715971,1.4784,225.47,225.37,20.0]
[1734143718083,1.4784,225.47,225.36,20.0]
[1734143718259,1.4784,225.47,225.38,0.6654189]
[1734143718455,1.4784,225.47,225.39,6.63865311]
[1734143718652,1.4784,225.52,225.4,0.66527898]
[1734143720348,1.4784,225.52,225.39,6.63865311]
[1734143720548,1.4784,225.52,225.39,20.0]
[1734143720751,1.4784,225.52,225.41,20.0]
[1734143721347,1.4784,225.52,225.4,26.63865311]
[1734143721554,1.4784,225.52,225.41,20.66527606]
[1734143724672,1.4784,225.52,225.42,20.0]
[1734143725663,1.4784,225.52,225.41,20.0]
[1734143726189,1.4784,225.52,225.42,20.0]
[1734143727603,1.4784,225.52,225.43,0.66525724]
[1734143727775,1.4784,225.52,225.44,20.0]
[1734143729289,1.4784,225.52,225.43,20.0]
[1734143731971,1.4784,225.52,225.42,20.0]
[1734143731972,8.1297,225.52,225.42,20.0]
[1734143732480,8.1297,225.52,225.41,20.0]
[1734143734772,5.237421,225.52,225.41,20.0]
[1734143735891,5.237421,225.52,225.39,0.66524409]
[1734143738199,23.902374,225.51,225.36,5.12980901]
[1734143738494,6.3248,225.5,225.33,14.61847666]
[1734143738699,0.12549,225.48,225.32,7.13709189]
[1734143740281,0.12549,225.46,225.32,7.13709189]
[1734143740487,0.12549,225.46,225.32,18.98427624]
[1734143743097,6.3248,225.44,225.32,5.20853124]
[1734143749681,6.6539,225.43,225.29,0.66557554]
[1734143749878,6.6539,225.43,225.3,20.0]
[1734143750099,23.902374,225.42,225.3,20.0]
[1734143751101,6.6545,225.41,225.27,5.87852507]
[1734143753485,0.12549,225.39,225.27,5.21286457]
[1734143754304,6.6545,225.41,225.28,0.66573609]
[1734143754507,6.6545,225.41,225.28,7.3043892]
[1734143756800,16.35214392,225.44,225.31,6.63865311]
[1734143756801,9.04775392,225.44,225.31,6.63865311]
[1734143758491,9.04775392,225.44,225.3,6.63865311]
[1734143758694,9.04775392,225.44,225.31,0.6655589]
[1734143759414,6.3248,225.44,225.31,0.6655589]
[1734143760609,6.6539,225.43,225.31,0.6655589]
[1734143761201,9.25446201,225.43,225.31,0.6655589]
[1734143762010,6.3248,225.44,225.32,26.63865311]
[1734143762199,6.3248,225.44,225.33,0.66548033]
[1734143762410,6.3248,225.44,225.33,7.30413344]
[1734143763015,6.3248,225.44,225.33,0.66548033]
[1734143768523,6.3248,225.44,225.34,0.66549076]
[1734143769800,6.3248,225.44,225.33,0.66547796]
[1734143770905,6.3248,225.44,225.33,7.30413107]
[1734143772126,6.6529,225.47,225.33,8.91673107]
[1734143779739,2.67860759,225.46,225.33,8.91673107]
[1734143780621,6.35770259,225.47,225.33,8.91673107]
[1734143781706,6.4282,225.46,225.33,0.66547796]
[1734143781908,6.4282,225.46,225.29,0.66549529]
[1734143781909,30.555674,225.45,225.29,0.66549529]
[1734143782107,0.12549,225.42,225.28,5.21286457]
[1734143782934,0.12549,225.42,225.29,0.66564434]
[1734143783124,6.77989,225.42,225.29,0.66564434]
[1734143783632,6.77989,225.42,225.31,20.0]
[1734143786522,6.77989,225.42,225.28,5.21286457]
[1734143786848,6.6548,225.4,225.28,20.0]
[1734143789142,6.6548,225.4,225.29,20.0]
[1734143789840,6.5048,225.41,225.29,20.0]
[1734143790041,6.5048,225.41,225.29,20.66560596]
[1734143791607,13.1594,225.41,225.29,20.0]
[1734143795636,13.1594,225.41,225.3,7.30430909]
[1734143795843,6.5048,225.41,225.3,7.30430909]
[1734143797034,6.5048,225.41,225.31,6.63865311]
[1734143797342,6.5048,225.41,225.32,7.30415241]
[1734143798927,6.5048,225.41,225.32,0.6654993]
[1734143799114,6.5048,225.41,225.31,0.66551909]
[1734143799316,6.5048,225.41,225.32,6.63865311]
[1734143799536,6.5048,225.41,225.33,0.66551698]
[1734143800821,6.6606,225.45,225.36,6.63865311]
[1734143801029,6.6606,225.45,225.37,7.30399044]
[1734143801223,6.6606,225.51,225.38,6.63865311]
[1734143801425,6.6606,225.51,225.39,7.30396483]
[1734143804340,6.6606,225.51,225.39,0.66531172]
[1734143804841,6.6606,225.51,225.41,20.0]
[1734143805738,6.6606,225.51,225.4,7.30389291]
[1734143806046,6.6606,225.51,225.4,0.6652398]
[1734143809046,6.6062,225.58,225.43,0.12549]
[1734143809252,6.6062,225.58,225.45,6.63865311]
[1734143809932,6.6062,225.58,225.46,20.0]
[1734143811850,6.77529,225.57,225.46,20.0]
[1734143813329,6.77529,225.57,225.43,6.02914903]
[1734143813755,6.6504,225.55,225.43,5.36391013]
[1734143821637,0.12549,225.54,225.43,5.36391013]
[1734143823742,2.7186051,225.53,225.43,5.36391013]
[1734143825537,2.7186051,225.53,225.41,0.66521339]
[1734143825757,2.7186051,225.53,225.42,20.0]
[1734143826158,6.77669,225.52,225.42,20.0]
[1734143826365,6.77669,225.52,225.39,5.36391013]
[1734143827343,6.77669,225.52,225.4,0.66532921]
[1734143827644,6.77669,225.52,225.4,6.02923934]
[1734143829062,20.0,225.51,225.4,12.66789245]
[1734143829645,20.0,225.52,225.4,12.66789245]
[1734143831556,20.0,225.52,225.4,6.02923934]
[1734143831743,0.12549,225.54,225.4,6.02923934]
[1734143832874,26.6509,225.53,225.4,6.02923934]
[1734143834645,6.6509,225.53,225.4,6.02923934]
[1734143836862,6.6509,225.53,225.4,12.66789245]
[1734143838673,6.6509,225.53,225.4,6.02923934]
[1734143842253,0.12549,225.52,225.4,5.36391013]
[1734143842464,6.6515,225.51,225.4,5.36391013]
[1734143843279,6.6515,225.51,225.36,8.25065311]
[1734143843280,0.12549,225.49,225.36,1.612]
[1734143844775,0.12549,225.49,225.37,20.0]
[1734143848555,0.12549,225.49,225.36,21.612]
[1734143848886,6.6524,225.48,225.36,21.612]
[1734143849047,6.6524,225.48,225.38,20.0]
[1734143850363,6.6512,225.52,225.39,7.30408172]
[1734143850579,6.6512,225.52,225.4,6.2956]
[1734143851166,6.6512,225.52,225.41,0.66528731]
[1734143851760,6.6504,225.55,225.42,8.19785311]
[1734143851993,6.6504,225.55,225.44,6.63865311]
[1734143852661,6.6504,225.55,225.43,7.30383742]
[1734143853470,88.1062,225.58,225.43,7.30383742]
[1734143853471,6.648,225.63,225.48,6.63865311]
[1734143853676,6.648,225.63,225.49,0.66503107]
[1734143853984,2.70140491,225.61,225.49,0.66503107]
[1734143854285,2.70140491,225.61,225.48,11.65951013]
[1734143855287,23.902374,225.6,225.48,11.65951013]
[1734143856289,23.902374,225.6,225.48,5.36391013]
[1734143856290,30.551374,225.6,225.48,5.36391013]
[1734143856588,30.551374,225.6,225.45,21.5592]
[1734143857981,0.12549,225.55,225.45,1.5592]
[1734143859071,6.77609,225.55,225.45,1.5592]
[1734143859391,23.776884,225.54,225.41,12.01676013]
[1734143859690,0.12549,225.53,225.41,6.5807]
[1734143861478,6.6512,225.52,225.41,6.5807]
[1734143862687,23.776884,225.51,225.4,21.5116]
[1734143862970,6.6518,225.5,225.4,1.5116]
[1734143870173,6.6524,225.48,225.36,5.43606013]
[1734143870402,23.776884,225.47,225.36,20.0]
[1734143871409,6.653,225.46,225.36,20.0]
[1734143874595,20.0,225.5,225.37,20.0]
[1734143874811,23.776884,225.49,225.37,20.0]
[1734143875114,0.12549,225.48,225.37,20.0]
[1734143877193,0.12549,225.48,225.36,20.0]
[1734143877518,6.6527,225.47,225.36,20.0]
[1734143879104,6.6527,225.47,225.35,1.5414]
[1734143882512,2.62011572,225.49,225.36,27.30407319]
[1734143882828,2.62011572,225.49,225.36,7.30407319]
[1734143883526,2.62011572,225.49,225.36,0.66542008]
[1734143885232,2.62011572,225.49,225.36,7.30407319]
[1734143887934,26.6518,225.5,225.38,6.63865311]
[1734143888636,26.6518,225.5,225.37,6.63865311]
[1734143888807,26.6518,225.5,225.36,12.74013332]
[1734143889010,26.6518,225.5,225.38,6.63865311]
[1734143889231,26.6518,225.5,225.37,6.63865311]
[1734143889445,26.6518,225.5,225.38,0.6653257]
[1734143904142,30.174374,225.49,225.36,5.43606013]
[1734143904331,30.174374,225.49,225.36,20.0]
[1734143904843,30.174374,225.49,225.35,20.0]
[1734143905551,23.776884,225.47,225.33,4.87584507]
[1734143905728,23.776884,225.47,225.32,0.66550209]
[1734143905729,0.12549,225.46,225.34,20.0]
[1734143906648,6.6533,225.45,225.33,20.0]
[1734143907447,23.776884,225.44,225.33,20.0]
[1734143907632,6.6533,225.45,225.34,0.6655859]
[1734143908645,6.6533,225.45,225.33,20.0]
[1734143915139,6.6533,225.45,225.34,20.0]
[1734143915868,6.6533,225.45,225.32,0.66548028]
[1734143916155,6.6533,225.45,225.32,7.30413339]
[1734143917332,6.6533,225.45,225.32,6.10154041]
[1734143918048,6.6539,225.43,225.32,5.43606013]